PAYMENT DATE,EXP_CODE,EXPENSE TYPE,SUPPLIER NAME,REFERENCE,AMOUNT
06/03/2012,Endosc Decontam,Medical & Surgical Equipment,LANCER UK LTD,10165792,"29,851.20"
01/03/2012,Accommodation WGH,Miscellaneous Expenses,ORIGIN HOUSING LTD,13024633,"52,425.00"
06/03/2012,Pathology Directorate,CONSULTANCY SERVICES,PINSENT MASONS LLP,13024975,"27,580.26"
01/03/2012,Waste Management WGH,Miscellaneous Expenses,SRCL LTD,20165408,"25,164.45"
01/03/2012,Cardiograph,EQUIPMENT MAINTENANCE,NHS SUPPLY CHAIN,30176836,"32,462.39"
01/03/2012,Trust Radiology,Engineering Maintenance,NHS SUPPLY CHAIN,30176837,"26,656.80"
01/03/2012,Trust Radiology,Engineering Maintenance,NHS SUPPLY CHAIN,30176837,"26,656.80"
01/03/2012,Out Patients SACH,Drugs,NHSBSA PRESCRIPTION  PRICING DIVISION,30178047,"48,511.27"
01/03/2012,Energy & Water - SA,Fuel & Power,TOTAL GAS & POWER,30178109,"35,163.35"
01/03/2012,Energy & Water - WGH,Fuel & Power,TOTAL GAS & POWER,30178150,"131,398.00"
06/03/2012,Pharmacy WGH,Drugs,HEALTHCARE AT HOME LTD,60103455,"35,504.71"
29/03/2012,Ambulances,AMBULANCE SERVICES,MEDICAL SERVICES LTD,10165688,"116,653.84"
22/03/2012,IT Contracts,Computer Maintenance,ISOFT PLC,10166419,"100,420.07"
29/03/2012,Ambulances,AMBULANCE SERVICES,MEDICAL SERVICES LTD,10166422,"116,653.84"
29/03/2012,Balance Sheet,Assets In Course Of Const'n,INTEGRATED HEALTH PROJECTS,10166734,"162,346.82"
29/03/2012,Balance Sheet,Assets In Course Of Const'n,INTEGRATED HEALTH PROJECTS,10166735,"136,508.96"
29/03/2012,Balance Sheet,Assets In Course Of Const'n,INTEGRATED HEALTH PROJECTS,10166736,"38,377.50"
08/03/2012,Chief Executive,CONSULTANCY SERVICES,ERNST & YOUNG LLP,13024772,"56,175.79"
08/03/2012,Watford Health Campus,Miscellaneous Expenses,NABARRO LLP,13025095,"52,126.42"
08/03/2012,Watford Health Campus,Miscellaneous Expenses,NABARRO LLP,13025096,"42,840.00"
29/03/2012,Quality Assurance,Miscellaneous Expenses,OPTIMUM CONTRACT LTD,13025164,"28,000.00"
15/03/2012,Med Anaesthetics WGH,Medical Agency,NES HEALTHCARE UK,13025240,"25,500.00"
15/03/2012,Balance Sheet,Other Creditors,CP PLUS LTD,13025285,"33,913.46"
22/03/2012,Haematology -,Computer Purchases,EQUALS (GH) LTD,13025454,"33,866.00"
22/03/2012,Watford Health Campus,Miscellaneous Expenses,NABARRO LLP,13025455,"28,655.00"
22/03/2012,Watford Health Campus,Miscellaneous Expenses,NABARRO LLP,13025456,"60,249.00"
19/03/2012,Balance Sheet,Assets In Course Of Const'n,T & B CONTRACTORS LTD,20164217,"112,676.65"
22/03/2012,Pharmacy WGH,Drugs,ROCHE PRODUCTS LTD,20166145,"35,116.76"
29/03/2012,Balance Sheet,Assets In Course Of Const'n,VINCI FACILITIES BUILDING SOLUTIONS (S),20166222,"53,444.58"
29/03/2012,Pharmacy WGH,Drugs,ROCHE PRODUCTS LTD,20166433,"29,337.70"
30/03/2012,Balance Sheet,Assets In Course Of Const'n,VINCI FACILITIES BUILDING SOLUTIONS (S),20166788,"29,355.15"
30/03/2012,Balance Sheet,Assets In Course Of Const'n,VINCI FACILITIES BUILDING SOLUTIONS (S),20166793,"175,142.68"
22/03/2012,Transport WGH,AMBULANCE SERVICES,HERTFORDSHIRE PARTNERSHIP NHS FOUNDATION,30177751,"64,283.00"
19/03/2012,Transport WGH,AMBULANCE SERVICES,HERTFORDSHIRE PARTNERSHIP NHS FOUNDATION,30178344,"64,283.00"
22/03/2012,Balance Sheet,Stores,NHS SUPPLY CHAIN,30178353,"135,842.31"
23/03/2012,Trust Radiology,Engineering Maintenance,NHS SUPPLY CHAIN,30178355,"39,012.58"
23/03/2012,Trust Radiology,Engineering Maintenance,NHS SUPPLY CHAIN,30178367,"102,799.13"
15/03/2012,Energy & Water - SA,Fuel & Power,SOUTHERN ELECTRIC PLC,30178404,"30,754.85"
15/03/2012,Energy & Water - SA,Fuel & Power,SOUTHERN ELECTRIC PLC,30178405,"27,997.58"
15/03/2012,Energy & Water - HH,Fuel & Power,SOUTHERN ELECTRIC PLC,30178406,"31,731.70"
15/03/2012,Energy & Water - WGH,Fuel & Power,SOUTHERN ELECTRIC PLC,30178407,"91,403.62"
23/03/2012,Transport WGH,AMBULANCE SERVICES,HERTFORDSHIRE PARTNERSHIP NHS FOUNDATION,30178430,"28,123.00"
23/03/2012,Transport WGH,AMBULANCE SERVICES,HERTFORDSHIRE PARTNERSHIP NHS FOUNDATION,30178431,"42,984.00"
22/03/2012,Balance Sheet,Stores,NHS SUPPLY CHAIN,30178445,"156,249.02"
23/03/2012,Trust Radiology,Engineering Maintenance,NHS SUPPLY CHAIN,30178660,"168,223.71"
23/03/2012,Trust Radiology,Engineering Maintenance,NHS SUPPLY CHAIN,30178661,"211,219.55"
23/03/2012,Balance Sheet,Stores,NHS SUPPLY CHAIN,30178662,"139,078.51"
29/03/2012,R&D Clinical Staff,Miscellaneous Expenses,UNIVERSITY OF HERTFORDSHIRE,30178698,"30,995.00"
29/03/2012,Catering WGH,Provisions,COMPASS SERVICES UK AND IRELAND LTD,30178710,"36,503.00"
29/03/2012,Catering WGH,Provisions,COMPASS SERVICES UK AND IRELAND LTD,30178710,"27,446.00"
29/03/2012,Laundry,Healthcare From Other Bodies,COMPASS SERVICES UK AND IRELAND LTD,30178710,"28,828.00"
29/03/2012,SACH Domestics,Cleaning,COMPASS SERVICES UK AND IRELAND LTD,30178712,"34,792.00"
29/03/2012,Catering SAHH,Provisions,COMPASS SERVICES UK AND IRELAND LTD,30178712,"25,365.00"
29/03/2012,Domestics SAHH,Cleaning,COMPASS SERVICES UK AND IRELAND LTD,30178712,"54,121.00"
29/03/2012,Porters SAHH,Healthcare From Other Bodies,COMPASS SERVICES UK AND IRELAND LTD,30178712,"28,882.00"
29/03/2012,Catering WGH,Provisions,COMPASS SERVICES UK AND IRELAND LTD,30178713,"70,419.00"
29/03/2012,Domestics WGH,Cleaning,COMPASS SERVICES UK AND IRELAND LTD,30178713,"185,603.00"
29/03/2012,Porters WGH,Healthcare From Other Bodies,COMPASS SERVICES UK AND IRELAND LTD,30178713,"86,040.00"
29/03/2012,Laundry,Healthcare From Other Bodies,COMPASS SERVICES UK AND IRELAND LTD,30178713,"31,943.00"
30/03/2012,Cardiac Catheter Lab WGH,EQUIPMENT MAINTENANCE,NHS SUPPLY CHAIN,30178728,"143,465.64"
29/03/2012,Balance Sheet,Stores,NHS SUPPLY CHAIN,30178766,"147,643.81"
19/03/2012,Balance Sheet,Assets In Course Of Const'n,ARJ CONSTRUCTION LTD,60102996,"62,700.00"
29/03/2012,IT Contracts,Computer Maintenance,FIVE ARROWS LEASING LTD,60103512,"161,000.00"
15/03/2012,Pharmacy WGH,Drugs,HEALTHCARE AT HOME LTD,60103673,"81,574.77"
15/03/2012,Trust Radiology,Engineering Maintenance,HEALTHCARE SOFTWARE SYSTEMS LTD,60103800,"40,275.00"
15/03/2012,PACS,Computer Maintenance,ACCENTURE UK LTD,60103827,"43,013.90"
29/03/2012,Balance Sheet,Assets In Course Of Const'n,ARJ CONSTRUCTION,60104335,"226,100.00"
29/03/2012,Balance Sheet,Assets In Course Of Const'n,ARJ CONSTRUCTION,60104385,"150,813.12"
,,,,"4,970,243.25",
